fUSD/lending_fUSD_20240520
["ID","MTS","AMOUNT","RATE_DAILY","PERIOD"]
[327565637,1716234646906,-151.0,0.00022054,7]
[327565638,1716234646915,-151.0,0.00022054,7]
[327565639,1716234646929,-151.0,0.00022054,7]
[327565640,1716234646938,-151.0,0.00022054,7]
[327565641,1716234646948,-151.0,0.00022054,7]
[327565642,1716234646957,-263.480876,0.00022054,7]
[327565643,1716234646966,-347.574994,0.00022054,7]
[327565644,1716234646975,-347.574994,0.00022054,7]
[327565645,1716234646984,-151.0,0.00022054,7]
[327565646,1716234646993,-151.0,0.00022054,7]
[327565648,1716234647002,-151.0,0.00022054,7]
[327565650,1716234647011,-151.0,0.00022054,7]
[327565652,1716234647021,-151.0,0.00022054,7]
[327565654,1716234647030,-660.857566,0.00022054,7]
[327565656,1716234647040,-660.857566,0.00022054,7]
[327565658,1716234647049,-274.445556,0.00022054,7]
[327565660,1716234647058,-151.0,0.00022054,7]
[327565662,1716234647068,-274.445556,0.00022054,7]
[327565666,1716234647077,-151.0,0.00022054,7]
[327565671,1716234647086,-151.0,0.00022054,7]
[327565676,1716234647096,-151.0,0.00022054,7]
[327565681,1716234647105,-151.0,0.00022054,7]
[327565684,1716234647114,-293.207336,0.00022054,7]
[327565688,1716234647123,-355.15693,0.00022054,7]
[327565692,1716234647132,-355.15693,0.00022054,7]
[327565696,1716234647141,-181.982068,0.00022054,7]
[327565699,1716234647151,-151.0,0.00022054,7]
[327565702,1716234647160,-151.0,0.00022054,7]
[327565705,1716234647169,-181.982068,0.00022054,7]
[327565708,1716234647185,-151.0,0.00022054,7]
[327565711,1716234647194,-151.0,0.00022054,7]
[327565714,1716234647203,-151.0,0.00022054,7]
[327565717,1716234647213,-151.0,0.00022054,7]
[327565720,1716234647222,-151.0,0.00022054,7]
[327565722,1716234647232,-151.0,0.00022054,7]
[327565725,1716234647242,-151.0,0.00022054,7]
[327565728,1716234647251,-151.0,0.00022054,7]
[327565731,1716234647260,-151.0,0.00022054,7]
[327565733,1716234647270,-151.0,0.00022054,7]
[327565735,1716234647282,-151.0,0.00022054,7]
[327565737,1716234647291,-151.0,0.00022054,7]
[327565739,1716234647300,-151.0,0.00022054,7]
[327565742,1716234647310,-151.0,0.00022054,7]
[327565743,1716234647481,-151.0,0.00022054,7]
[327565744,1716234647492,-151.0,0.00022054,7]
[327565745,1716234647502,-866.917076,0.00022054,7]
[327565746,1716234647512,-866.917076,0.00022054,7]
[327565747,1716234647521,-295.485926,0.00022054,7]
[327565748,1716234647530,-176.190202,0.00022054,7]
[327565749,1716234647539,-295.485926,0.00022054,7]
[327565750,1716234647548,-176.190202,0.00022054,7]
[327565751,1716234647557,-151.0,0.00022054,7]
[327565752,1716234647566,-548.47604,0.00022054,7]
[327565753,1716234647576,-151.0,0.00022054,7]
[327565754,1716234647585,-548.47604,0.00022054,7]
[327565755,1716234647594,-151.0,0.00022054,7]
[327565756,1716234647603,-151.0,0.00022054,7]
[327565757,1716234647612,-151.0,0.00022054,7]
[327565758,1716234647621,-151.0,0.00022054,7]
[327565759,1716234647630,-151.0,0.00022054,7]
[327565760,1716234647639,-377.119003,0.00022054,7]
[327565761,1716234647649,-377.119003,0.00022054,7]
[327565762,1716234647658,-151.0,0.00022054,7]
[327565763,1716234647668,-151.0,0.00022054,7]
[327565764,1716234647680,-151.0,0.00022054,7]
[327565765,1716234647689,-576.359312,0.00022054,7]
[327565766,1716234647699,-576.359312,0.00022054,7]
[327565767,1716234647710,-411.846106,0.00022054,7]
[327565768,1716234647719,-411.846106,0.00022054,7]
[327565769,1716234647729,-151.0,0.00022054,7]
[327565770,1716234647738,-151.0,0.00022054,7]
[327565771,1716234647747,-151.0,0.00022054,7]
[327565772,1716234647757,-151.0,0.00022054,7]
[327565773,1716234647766,-151.0,0.00022054,7]
[327565774,1716234647777,-158.43622,0.00022054,7]
[327565775,1716234647787,-156.211036,0.00022054,7]
[327565776,1716234647796,-158.43622,0.00022054,7]
[327565777,1716234647806,-175.678457,0.00022054,7]
[327565778,1716234647816,-151.0,0.00022054,7]
[327565779,1716234647825,-175.678457,0.00022054,7]
[327565780,1716234647835,-151.0,0.00022054,7]
[327565781,1716234647844,-151.0,0.00022054,7]
[327565782,1716234647854,-151.0,0.00022054,7]
[327565783,1716234647863,-151.0,0.00022054,7]
[327565784,1716234647873,-2124.535507,0.00022054,7]
[327565785,1716234647883,-2124.535507,0.00022054,7]
[327565786,1716234647892,-151.0,0.00022054,7]
[327565787,1716234647903,-151.0,0.00022054,7]
[327565788,1716234647912,-388.643594,0.00022054,7]
[327565789,1716234647923,-388.643594,0.00022054,7]
[327565790,1716234647933,-151.0,0.00022054,7]
[327565791,1716234647942,-151.0,0.00022054,7]
[327565792,1716234647951,-151.0,0.00022054,7]
[327565793,1716234647960,-151.0,0.00022054,7]
[327565794,1716234647970,-993.662447,0.00022054,7]
[327565795,1716234647979,-151.0,0.00022054,7]
[327565796,1716234647989,-993.662447,0.00022054,7]
[327565797,1716234647998,-151.0,0.00022054,7]
[327565798,1716234648008,-151.0,0.00022054,7]
[327565799,1716234648018,-301.41434218,0.00022054,7]
[327565800,1716234648027,-151.0,0.00022054,7]
[327565801,1716234648037,-151.0,0.00022054,7]
[327565802,1716234648047,-255.14880942,0.00022104,2]
[327565803,1716234648057,-151.14946544,0.00022121,2]
[327565804,1716234648066,-153.13443804,0.0002221,2]
[327565805,1716234648075,-2470.66554638,0.00022214,2]
[327565806,1716234648646,-283.50563447,0.00022214,2]
[327565807,1716234648656,-255.14880942,0.00022227,2]
[327565808,1716234648665,-151.14946544,0.0002245,2]
[327565809,1716234648677,-170.34145199,0.00022466,2]
[327565810,1716234648686,-974.0,0.00022487,2]
[327565811,1716234648695,-2160.0,0.00022487,2]
[327565812,1716234648704,-210.0,0.00022487,2]
[327565813,1716234648714,-1642.0,0.00022487,2]
[327565814,1716234648723,-544.0,0.00022487,2]
[327565815,1716234648732,-214.655,0.00022487,2]
[327565816,1716234648742,-798.0,0.00022487,2]
[327565817,1716234648751,-444.0,0.00022487,2]
[327565818,1716234648759,-2404.163,0.00022487,2]
[327565819,1716234648769,-1648.0,0.00022487,2]
[327565820,1716234648778,-1137.0,0.00022487,2]
[327565821,1716234648787,-481.846,0.00022487,2]
[327565822,1716234648796,-25586.215,0.00022487,2]
[327565823,1716234648805,-151.655,0.00022487,2]
[327565824,1716234648814,-150.0,0.00022487,2]
[327565825,1716234648823,-207.704,0.00022487,2]
[327565826,1716234648832,-5131.0,0.00022487,2]
[327565827,1716234648841,-150.982,0.00022487,2]
[327565828,1716234648850,-150.0,0.00022487,2]
[327565829,1716234648859,-1060.0,0.00022487,2]
[327565830,1716234648868,-151.397,0.00022487,2]
[327565831,1716234648877,-151.361,0.00022487,2]
[327565832,1716234648886,-150.583,0.00022487,2]
[327565833,1716234648896,-154.688,0.00022487,2]
[327565834,1716234648905,-151.0,0.00022487,7]
[327565835,1716234648914,-151.0,0.00022487,7]
[327565836,1716234649069,-151.0,0.00022487,7]
[327565837,1716234649121,-289.434305,0.00022487,7]
[327565838,1716234649131,-289.434305,0.00022487,7]
[327565839,1716234649142,-151.0,0.00022487,7]
[327565840,1716234649151,-151.0,0.00022487,7]
[327565841,1716234649161,-151.0,0.00022487,7]
[327565842,1716234649175,-151.0,0.00022487,7]
[327565843,1716234649191,-203.52525364,0.00022498,2]
[327565844,1716234649200,-166.66666667,0.00022577,2]
[327565845,1716234649209,-321.50938792,0.00022599,2]
[327565846,1716234649218,-173.415306,0.00022674,2]
[327565847,1716234649229,-152.10791562,0.00022687,2]
[327565848,1716234649238,-152.6492301,0.00022701,2]
[327565849,1716234649249,-151.14946544,0.00022713,2]
[327565850,1716234649259,-258.51289035,0.00022749,2]
[327565851,1716234649270,-155.75440252,0.00022896,2]
[327565852,1716234649280,-152.6492301,0.00022904,2]
[327565853,1716234649290,-155.0,0.00023,2]
[327565854,1716234649299,-5000.0,0.00023,2]
[327565855,1716234649309,-151.0,0.00023,7]
[327565856,1716234649319,-151.0,0.00023,7]
[327565857,1716234649328,-151.0,0.00023,7]
[327565858,1716234649338,-219.4734453,0.00023,7]
[327565859,1716234649348,-151.0,0.00023,7]
[327565860,1716234649358,-1800.0,0.00023,2]
[327565861,1716234649368,-151.0,0.00023,7]
[327565862,1716234649377,-155.75440252,0.00023034,2]
[327565863,1716234649387,-155.75440252,0.00023183,2]
[327565864,1716234649397,-152.6492301,0.00023229,2]
[327565865,1716234649410,-255.14880942,0.00023247,2]
[327565866,1716234649419,-258.51289035,0.00023367,2]
[327565867,1716234649433,-168.09249274,0.00023368,2]
[327565868,1716234649443,-152.6492301,0.00023391,2]
[327565869,1716234649453,-579.93,0.000234,2]
[327565870,1716234649462,-151.0,0.000234,7]
[327565871,1716234649471,-151.0,0.000234,7]
[327565872,1716234649480,-151.0,0.000234,7]
[327565873,1716234649490,-171.317288,0.000234,7]
[327565874,1716234649500,-151.0,0.000234,7]
[327565875,1716234649509,-152.698414,0.000234,7]
[327565876,1716234649521,-3134.96939493,0.0002342,2]
[327565877,1716234649530,-152.6492301,0.00023424,2]
[327565878,1716234649539,-3557.63065776,0.00023443,28]
[327565879,1716234649549,-166.83499667,0.00023549,2]
[327565880,1716234649558,-2754.17118085,0.00023557,2]
[327565881,1716234649567,-157.38762473,0.00023596,2]
[327565882,1716234649576,-152.10791562,0.00023618,2]
[327565883,1716234649585,-152.6492301,0.00023671,2]
[327565884,1716234649595,-153.93988,0.00023677,2]
[327565885,1716234649604,-258.51289035,0.00023694,2]
[327565886,1716234649613,-759.96,0.000237,2]
[327565887,1716234649622,-155.75440252,0.00023708,2]
[327565888,1716234649631,-152.10791562,0.00023714,2]
[327565889,1716234649641,-152.10791562,0.00023724,2]
[327565890,1716234649651,-151.14946544,0.00023817,2]
[327565891,1716234649660,-830.94633425,0.00024,2]
[327565892,1716234649669,-2227.50179135,0.00024,2]
[327565893,1716234649681,-166.66666668,0.00024006,2]
[327565894,1716234649690,-258.51289035,0.00024031,2]
[327565895,1716234649700,-159.15842353,0.00024159,2]
[327565896,1716234649709,-258.51289035,0.00024173,2]
[327565897,1716234649718,-159.36491,0.00024185,2]
[327565898,1716234649728,-153.93988,0.0002419,2]
[327565899,1716234649738,-152.10791562,0.00024201,2]
[327565900,1716234649747,-180.0,0.0002423,2]
[327565901,1716234649756,-152.6492301,0.00024243,2]
[327565902,1716234649767,-10000.0,0.0002429,2]
[327565903,1716234649776,-152.6492301,0.00024299,2]
[327565904,1716234649785,-150.0,0.00024299,2]
[327565905,1716234649794,-151.0,0.000243,7]
[327565906,1716234649803,-151.0,0.000243,7]
[327565907,1716234649812,-151.0,0.000243,7]
[327565908,1716234649822,-253.48164,0.000243,7]
[327565909,1716234649831,-151.0,0.000243,7]
[327565910,1716234649841,-151.0,0.000243,7]
[327565911,1716234649851,-151.0,0.000243,7]
[327565912,1716234649860,-151.0,0.000243,7]
[327565913,1716234649870,-151.0,0.000243,7]
[327565914,1716234649880,-151.0,0.000243,7]
[327565915,1716234649889,-198.979444,0.000243,7]
[327565916,1716234649899,-267.993848,0.000243,7]
[327565917,1716234649911,-289.434305,0.000243,7]
[327565918,1716234649921,-289.434305,0.000243,7]
[327565919,1716234649933,-151.0,0.000243,7]
[327565920,1716234649942,-151.0,0.000243,7]
[327565921,1716234649952,-152.122204,0.000243,7]
[327565922,1716234649961,-330.51728,0.000243,7]
[327565923,1716234649970,-330.51728,0.000243,7]
[327565924,1716234649979,-151.0,0.000243,7]
[327565925,1716234649989,-151.0,0.000243,7]
[327565926,1716234650001,-151.0,0.000243,7]
[327565927,1716234650012,-151.0,0.000243,7]
[327565928,1716234650021,-151.0,0.000243,7]
[327565929,1716234650030,-151.0,0.000243,7]
[327565930,1716234650041,-151.0,0.000243,7]
[327565931,1716234650050,-151.0,0.000243,7]
[327565932,1716234650060,-347.574994,0.000243,7]
[327565933,1716234650071,-347.574994,0.000243,7]
[327565934,1716234650081,-151.0,0.000243,7]
[327565935,1716234650091,-151.0,0.000243,7]
[327565936,1716234650100,-151.0,0.000243,7]
[327565937,1716234650110,-151.0,0.000243,7]
[327565938,1716234650119,-151.0,0.000243,7]
[327565939,1716234650128,-660.857566,0.000243,7]
[327565940,1716234650138,-660.857566,0.000243,7]
[327565941,1716234650148,-274.445556,0.000243,7]
[327565942,1716234650158,-151.0,0.000243,7]
[327565943,1716234650167,-274.445556,0.000243,7]
[327565944,1716234650179,-151.0,0.000243,7]
[327565945,1716234650188,-151.0,0.000243,7]
[327565946,1716234650200,-151.0,0.000243,7]
[327565947,1716234650209,-151.0,0.000243,7]
[327565948,1716234650219,-355.15693,0.000243,7]
[327565949,1716234650229,-355.15693,0.000243,7]
[327565950,1716234650239,-181.982068,0.000243,7]
[327565951,1716234650249,-151.0,0.000243,7]
[327565952,1716234650259,-151.0,0.000243,7]
[327565953,1716234650269,-181.982068,0.000243,7]
[327565954,1716234650280,-151.0,0.000243,7]
[327565955,1716234650290,-151.0,0.000243,7]
[327565956,1716234650300,-151.0,0.000243,7]
[327565957,1716234650309,-151.0,0.000243,7]
[327565958,1716234650318,-151.0,0.000243,7]
[327565959,1716234650328,-151.0,0.000243,7]
[327565960,1716234650337,-151.0,0.000243,7]
[327565961,1716234650347,-151.0,0.000243,7]
[327565962,1716234650356,-151.0,0.000243,7]
[327565963,1716234650367,-151.0,0.000243,7]
[327565964,1716234650377,-151.0,0.000243,7]
[327565965,1716234650388,-151.0,0.000243,7]
[327565966,1716234650397,-227.362553,0.000243,7]
[327565967,1716234650408,-151.0,0.000243,7]
[327565968,1716234650417,-151.0,0.000243,7]
[327565969,1716234650430,-866.917076,0.000243,7]
[327565970,1716234650439,-866.917076,0.000243,7]
[327565971,1716234650450,-295.485926,0.000243,7]
[327565972,1716234650460,-176.190202,0.000243,7]
[327565973,1716234650470,-295.485926,0.000243,7]
[327565974,1716234650479,-176.190202,0.000243,7]
[327565975,1716234650488,-151.0,0.000243,7]
[327565976,1716234650498,-548.47604,0.000243,7]
[327565977,1716234650508,-151.0,0.000243,7]
[327565978,1716234650518,-548.47604,0.000243,7]
[327565979,1716234650528,-151.0,0.000243,7]
[327565980,1716234650537,-151.0,0.000243,7]
[327565981,1716234650548,-151.0,0.000243,7]
[327565982,1716234650558,-89719.02516936,0.000243,10]
[327565983,1716234650575,-253.09995104,0.000243,10]
[327565984,1716234650587,-698.47070534,0.000243,10]
[327565985,1716234650599,-16115.78487219,0.000243,10]
[327565986,1716234650611,-14472.58910172,0.000243,10]
[327565987,1716234650624,-6776.84293465,0.000243,10]
[327565988,1716234650636,-7021.9999351,0.000243,10]
[327565989,1716234650661,-150.0,0.00022487,2]
[327565990,1716234650670,-8116.75379974,0.000243,10]
[327565991,1716234650688,-456825.43353186,0.000243,10]
[327565992,1716234650697,-151.0,0.000243,7]
[327565993,1716234650706,-228.384483,0.000243,7]
[327565994,1716234650714,-151.0,0.000243,7]
[327565995,1716234650723,-175.678457,0.000243,7]
[327565996,1716234650732,-151.0,0.000243,7]
[327565997,1716234650741,-175.678457,0.000243,7]
[327565998,1716234650750,-151.0,0.000243,7]
[327565999,1716234650759,-151.0,0.000243,7]
[327566000,1716234650769,-206.988747,0.000243,7]
[327566001,1716234650780,-151.0,0.000243,7]
[327566002,1716234650791,-2124.535507,0.000243,7]
[327566003,1716234650800,-2124.535507,0.000243,7]
[327566004,1716234650811,-151.0,0.000243,7]
[327566005,1716234650821,-151.0,0.000243,7]
[327566006,1716234650831,-388.643594,0.000243,7]
[327566007,1716234650841,-152.458043,0.000243,7]
[327566008,1716234650850,-388.643594,0.000243,7]
[327566009,1716234650860,-151.0,0.000243,7]
[327566010,1716234650870,-151.0,0.000243,7]
[327566011,1716234650880,-151.0,0.000243,7]
[327566012,1716234650889,-993.662447,0.000243,7]
[327566013,1716234650898,-151.0,0.000243,7]
[327566014,1716234650907,-993.662447,0.000243,7]
[327566015,1716234650917,-151.0,0.000243,7]
[327566016,1716234650927,-151.0,0.000243,7]
[327566017,1716234650936,-151.0,0.000243,7]
[327566018,1716234650945,-151.0,0.000243,7]
[327566019,1716234650953,-152.10791562,0.00024311,2]
[327566020,1716234650962,-255.14880942,0.00024378,2]
[327566021,1716234650971,-152.10791562,0.00024388,2]
[327566022,1716234650980,-166.29644052,0.00024399,2]
[327566023,1716234650990,-155.57833924,0.00024404,2]
[327566024,1716234650999,-151.14946544,0.00024407,2]
[327566025,1716234651008,-255.14880942,0.00024419,2]
[327566026,1716234651018,-155.57833924,0.00024557,2]
[327566027,1716234651027,-255.14880942,0.00024596,2]
[327566028,1716234651037,-155.57833924,0.00024638,2]
[327566029,1716234651047,-250.0,0.00024658,2]
[327566030,1716234651056,-255.14880942,0.00024661,2]
[327566031,1716234651065,-500.0,0.000247,2]
[327566032,1716234651075,-255.14880942,0.00024713,2]
[327566033,1716234651085,-258.51289035,0.00024715,2]
[327566034,1716234651094,-258.51289035,0.00024744,2]
[327566035,1716234651103,-151.14946544,0.00024745,2]
[327566036,1716234651113,-160.03602867,0.0002475,2]
[327566037,1716234651123,-310.276516,0.00024772,2]
[327566038,1716234651133,-460.344156,0.00024772,2]
[327566039,1716234651143,-18780.872207,0.00024772,2]
[327566040,1716234651152,-321.039999,0.00024772,2]
[327566041,1716234651162,-403.219229,0.00024772,2]
[327566042,1716234651172,-154.65566,0.00024772,2]
[327566043,1716234651191,-150.836958,0.00024772,2]
[327566044,1716234651200,-6912.488002,0.00024772,2]
[327566045,1716234651209,-201.537937,0.00024772,2]
[327566046,1716234651219,-199.20734,0.00024772,2]
[327566047,1716234651228,-152.6492301,0.00024788,2]
[327566048,1716234651238,-258.51289035,0.00024816,2]
[327566049,1716234651247,-159.15842353,0.00024835,2]
[327566050,1716234651256,-155.57833924,0.00024852,2]
[327566051,1716234651265,-152.6492301,0.00024889,2]
[327566052,1716234651275,-214.0,0.000249,2]
[327566053,1716234651285,-226.05078317,0.000249,2]
[327566054,1716234651295,-2754.17118085,0.000249,2]
[327566055,1716234651448,-215.25585804,0.000249,2]
[327566056,1716234651458,-500.0,0.000249,9]
[327566057,1716234651468,-160.22636661,0.000249,2]
[327566058,1716234651478,-187.21036864,0.000249,2]
[327566059,1716234651487,-3016.69636671,0.000249,2]
[327566060,1716234651497,-255.14880942,0.00024957,2]
[327566061,1716234651518,-255.14880942,0.00024963,2]
[327566062,1716234651528,-9152.26459409,0.0002499,2]
[327566063,1716234651537,-169.78248727,0.00024998,2]
[327566064,1716234651547,-2540.99575335,0.00024998,2]
[327566065,1716234651556,-155.0,0.00024998,2]
[327566066,1716234651566,-155.0,0.00024998,2]
[327566067,1716234651576,-186.31115594,0.00024998,2]
[327566068,1716234651586,-209.65154391,0.00024998,2]
[327566069,1716234651596,-217.66214706,0.00024998,2]
[327566070,1716234651606,-157.05090717,0.00024998,2]
[327566071,1716234651615,-1247.47877474,0.00024998,2]
[327566072,1716234651624,-364.18725345,0.00024998,2]
[327566073,1716234651634,-208.57383812,0.00024998,2]
[327566074,1716234651643,-495.49162865,0.00024998,2]
[327566075,1716234651652,-155.86308074,0.00024998,2]
[327566076,1716234651662,-202.80291915,0.00024998,2]
[327566077,1716234651672,-250.44520229,0.00024998,2]
[327566078,1716234651686,-155.0,0.00024998,2]
[327566079,1716234651696,-2215.68517202,0.00024998,7]
[327566080,1716234651705,-5273.17210479,0.00024998,2]
[327566081,1716234651715,-19626.96507151,0.00024999,2]
[327566082,1716234651725,-535.6337843,0.00024999,2]
[327566083,1716234651734,-265.91931471,0.00024999,2]
[327566084,1716234651744,-150.0,0.00024999,2]
[327566085,1716234651753,-150.0,0.00024999,2]
[327566086,1716234651762,-150.0,0.00024999,2]
[327566087,1716234651772,-150.0,0.00024999,2]
[327566088,1716234651781,-150.0,0.00024999,2]
[327566089,1716234651791,-150.0,0.00024999,2]
[327566090,1716234651800,-427.93999894,0.00025,5]
[327566091,1716234651809,-155.0,0.00025,2]
[327566092,1716234651818,-224.21566957,0.00025,2]
[327566093,1716234651828,-155.0,0.00025,2]
[327566094,1716234651837,-155.0,0.00025,2]
[327566095,1716234651846,-575.04451306,0.00025,14]
[327566096,1716234651856,-451.73513898,0.00025,7]
[327566097,1716234651865,-1778.35383838,0.00025,2]
[327566098,1716234651874,-1198.64768723,0.00025,2]
[327566099,1716234651884,-565681.71620516,0.00025,5]
[327566100,1716234651896,-1931.36379267,0.00025,5]
[327566101,1716234652031,-165.958,0.00022487,2]
[327566102,1716234652041,-1379.02806546,0.00025,5]
[327566103,1716234652052,-1653.65020588,0.00025,5]
[327566104,1716234652064,-12985.48324902,0.00025,5]
[327566105,1716234652075,-1733.13115037,0.00025,5]
[327566106,1716234652086,-78466.46977813,0.00025,5]
[327566107,1716234652097,-55966.91535134,0.00025,5]
[327566108,1716234652108,-37936.39225218,0.00025,5]
[327566109,1716234652120,-38960.71915507,0.00025,5]
[327566110,1716234652131,-45522.9114116,0.00025,5]
[327566111,1716234652142,-698.885,0.00025,5]
[327566112,1716234652279,-310.96174826,0.00025,5]
[327566113,1716234652290,-541.8949346,0.00025,5]
[327566114,1716234652301,-256.16530737,0.00025,5]
[327566115,1716234652312,-264.76535094,0.00025,5]
[327566116,1716234652323,-315.02007423,0.00025,5]
[327566117,1716234652424,-525.5933519,0.00012998,2]
[327566118,1716234652438,-468637.49719602,0.00025,5]
[327566119,1716234653043,-426.09923916,0.00012999,2]
[327566120,1716234653060,-8422.93008903,0.00025,5]
[327566121,1716234660291,2000.0,0.0002,15]
[327566130,1716234887666,910.85,0.00025,30]
[327566140,1716235457095,-2918.4686413,0.00011027,2]
[327566141,1716235457137,-1272.77486946,0.00011028,2]
[327566142,1716235457179,-155.0,0.00011029,2]
[327566143,1716235457219,-324.88581357,0.00011029,2]
[327566144,1716235457258,-35328.87067567,0.00011029,2]
[327566145,1716235506236,2547.86451751,8.272e-05,2]
[327566147,1716235522428,323.62975825,8.272e-05,2]
[327566148,1716235527080,955.79803048,0.00010478,2]
[327566149,1716235545094,815.52924064,9.954e-05,2]
[327566150,1716235691216,1245.32000866,0.00010911,2]
[327566151,1716235696441,643.41163531,0.00010911,2]
[327566152,1716235697044,361.08895808,0.00010911,2]
[327566153,1716235703996,3090.21232745,0.00010911,2]
[327566154,1716235707435,1297.97303105,0.00010911,2]
[327566159,1716235712038,713.07322149,0.00010911,2]
[327566160,1716235721942,7516.92474582,0.00010911,2]
[327566161,1716235728629,1296.05786052,0.00010366,2]
[327566162,1716235730814,446.62902304,0.00010911,2]
[327566163,1716235733726,4277.68847016,0.00010911,2]
[327566167,1716235742161,150.0,0.00010911,2]
[327566170,1716235805764,155.0,0.00010911,2]
[327566197,1716235831934,-303.8,0.00010912,2]
[327566198,1716235832075,-576.57826154,0.00010912,2]
[327566199,1716235832103,-698.49,0.00010912,2]
[327566200,1716235832114,-362.84660977,0.00010912,2]
[327566201,1716235832184,-406.88491914,0.00010912,2]
[327566202,1716235832196,-1362.09284991,0.00010912,2]
[327566203,1716235832218,-510.3000105,0.00010912,2]
[327566204,1716235832229,-208.1453274,0.00010912,2]
[327566205,1716235832239,-391.74517209,0.00010912,2]
[327566206,1716235832250,-853.57483657,0.00010912,2]
[327566207,1716235832259,-643.41163531,0.00010912,2]
[327566208,1716235832268,-158.37227379,0.00010912,2]
[327566209,1716235832278,-295.0876306,0.00010912,2]
[327566211,1716235832287,-22.13754507,0.00010912,2]
[327566214,1716235832302,-662.65759806,0.00010912,2]
[327566216,1716235832311,-369.67747622,0.00010912,2]
[327566218,1716235832321,-896.75857505,0.00010912,2]
[327566219,1716235832330,-267.45436248,0.00010912,2]
[327566221,1716235832340,-155.0,0.00010912,2]
[327566222,1716235832350,-3005.12855741,0.00010913,2]
[327566223,1716235832362,-228.10514808,0.00010913,2]
[327566224,1716235832372,-284.74485192,0.00010914,2]
[327566225,1716235832384,-434.745,0.00010914,2]
[327566265,1716235838280,-2198.97878938,0.00010914,2]
[327566266,1716235838290,-2918.4686413,0.00010914,2]
[327566267,1716235838299,-2918.4686413,0.00010914,2]
[327566268,1716235838309,-159.95559317,0.00010924,2]
[327566269,1716235838319,-537.18384349,0.00011024,2]
[327566270,1716235838329,-2282.02724172,0.00011025,2]
[327566272,1716235838338,-324.60531445,0.0001103,2]
[327566274,1716235838348,-192.61968187,0.0001103,2]
[327566276,1716235838358,-317.93729581,0.00011062,2]
[327566278,1716235838367,-276.14438157,0.00011081,2]
[327566280,1716235838381,-6198.5483,0.00011082,2]
[327566282,1716235838392,-210.0,0.00012002,2]
[327566284,1716235838402,-382.75,0.00012863,2]
[327566286,1716235838412,-2479.51367591,0.00012875,2]
[327566288,1716235838422,-306.03142817,0.00012875,2]
[327566290,1716235838432,-499.99,0.00012875,2]
[327566292,1716235838442,-410.2190037,0.00012876,2]
[327566294,1716235838452,-200.84001828,0.00012876,2]
[327566297,1716235838463,-1084.26,0.00012876,2]
[327566300,1716235838474,-205.33256617,0.00012877,2]
[327566302,1716235838485,-163.09696048,0.00012877,2]
[327566304,1716235838495,-514.79974303,0.00012877,2]
[327566306,1716235838505,-155.0,0.00012877,2]
[327566309,1716235838517,-200.35990695,0.00012877,2]
[327566311,1716235838527,-229.94001832,0.00012877,2]
[327566313,1716235838537,-460.37833859,0.00012877,2]
[327566315,1716235838547,-221.96329137,0.00012877,2]
[327566317,1716235838557,-428.3967097,0.00012972,2]
[327566319,1716235838566,-285.26513756,0.00012977,2]
[327566321,1716235838576,-4512.301642,0.00012994,2]
[327566322,1716235838586,-155.87069556,0.00012995,2]
[327566324,1716235838598,-181.29788502,0.00012996,2]
[327566326,1716235838608,-9213.47924585,0.00012996,2]